[Event "Titled Tuesday Blitz June 6 Late 2023"]
[White "Estrada Nieto, Julian"]
[Black "Jaivardhan Raj"]
[WhiteFideId "5101018"]
[BlackFideId "25744437"]
[WhiteElo "2161"]
[BlackElo "1772"]
[Result "0-1"]
[Round "4"]
[TimeControl "180+2"]
[Date "2023.06.07"]
[WhiteClock "0:00:05"]
[BlackClock "0:00:32"]
[Board "134"]

1. e4 {[%clk 0:03:00]}  c5 {[%clk 0:02:59]} 2. Nf3 {[%clk 0:03:01]}  e6 {[%clk 0:03:00]} 3. c3 {[%clk 0:03:00]}  d5 {[%clk 0:02:56]} 4. exd5 {[%clk 0:03:00]}  exd5 {[%clk 0:02:57]} 5. d4 {[%clk 0:03:01]}  Nc6 {[%clk 0:02:57]} 6. Bb5 {[%clk 0:03:01]}  cxd4 {[%clk 0:02:52]} 7. Nxd4 {[%clk 0:02:59]}  Bd7 {[%clk 0:02:44]} 8. O-O {[%clk 0:02:59]}  Bd6 {[%clk 0:02:44]} 9. Re1+ {[%clk 0:02:57]}  Nge7 {[%clk 0:02:44]} 10. Bg5 {[%clk 0:02:56]}  O-O {[%clk 0:02:38]} 11. Bd3 {[%clk 0:02:38]}  Nxd4 {[%clk 0:02:29]} 12. cxd4 {[%clk 0:02:38]}  f6 {[%clk 0:02:26]} 13. Bh4 {[%clk 0:02:36]}  Qc7 {[%clk 0:02:22]} 14. Bg3 {[%clk 0:02:34]}  Bxg3 {[%clk 0:02:22]} 15. hxg3 {[%clk 0:02:34]}  Nf5 {[%clk 0:02:21]} 16. Nc3 {[%clk 0:02:30]}  Qd6 {[%clk 0:02:15]} 17. Rc1 {[%clk 0:02:26]}  a6 {[%clk 0:02:14]} 18. Nxd5 {[%clk 0:02:20]}  Kh8 {[%clk 0:02:02]} 19. Bxf5 {[%clk 0:02:10]}  Bxf5 {[%clk 0:02:00]} 20. Ne3 {[%clk 0:02:09]}  Bg6 {[%clk 0:01:55]} 21. d5 {[%clk 0:02:03]}  Rad8 {[%clk 0:01:53]} 22. Qd4 {[%clk 0:02:01]}  Rfe8 {[%clk 0:01:52]} 23. Qc5 {[%clk 0:01:49]}  Qxc5 {[%clk 0:01:42]} 24. Rxc5 {[%clk 0:01:49]}  b6 {[%clk 0:01:40]} 25. Rc6 {[%clk 0:01:48]}  Rxd5 {[%clk 0:01:41]} 26. Rxb6 {[%clk 0:01:40]}  Rd2 {[%clk 0:01:41]} 27. a4 {[%clk 0:01:31]}  h6 {[%clk 0:01:31]} 28. b4 {[%clk 0:01:27]}  Rb2 {[%clk 0:01:23]} 29. Rd1 {[%clk 0:01:13]}  Re4 {[%clk 0:01:04]} 30. Rd8+ {[%clk 0:00:04]}  Kh7 {[%clk 0:01:02]} 31. Rbb8 {[%clk 0:00:03]}  Bf7 {[%clk 0:00:58]} 32. Nd5 {[%clk 0:00:03]}  Bxd5 {[%clk 0:00:49]} 33. Rxd5 {[%clk 0:00:02]}  Re1+ {[%clk 0:00:42]} 34. Kh2 {[%clk 0:00:03]}  Rxf2 {[%clk 0:00:42]} 35. Rd7 {[%clk 0:00:03]}  Ree2 {[%clk 0:00:42]} 36. Rbb7 {[%clk 0:00:04]}  Rxg2+ {[%clk 0:00:42]} 37. Kh3 {[%clk 0:00:05]}  Rh2+ {[%clk 0:00:39]} 38. Kg4 {[%clk 0:00:04]}  h5+ {[%clk 0:00:38]} 39. Kf5 {[%clk 0:00:05]}  Rhf2# {[%clk 0:00:32]} 0-1


[Site "https://www.chess.com"]

[Event "Titled Tuesday Blitz June 6 Late 2023"]
[White "Blackwhite017"]
[Black "Roienko, Artur"]
[BlackFideId "14136732"]
[WhiteElo "2114"]
[BlackElo "2062"]
[Result "0-1"]
[Round "4"]
[TimeControl "180+2"]
[Date "2023.06.07"]
[WhiteClock "0:00:10"]
[BlackClock "0:00:33"]
[Board "137"]

1. e4 {[%clk 0:02:58]}  e6 {[%clk 0:03:00]} 2. d3 {[%clk 0:02:58]}  d5 {[%clk 0:03:01]} 3. Nd2 {[%clk 0:02:57]}  g6 {[%clk 0:03:01]} 4. Ngf3 {[%clk 0:02:57]}  Bg7 {[%clk 0:03:02]} 5. c3 {[%clk 0:02:57]}  Ne7 {[%clk 0:03:02]} 6. g3 {[%clk 0:02:57]}  O-O {[%clk 0:03:03]} 7. Bg2 {[%clk 0:02:57]}  c5 {[%clk 0:03:04]} 8. O-O {[%clk 0:02:57]}  b5 {[%clk 0:03:04]} 9. Re1 {[%clk 0:02:55]}  b4 {[%clk 0:03:01]} 10. e5 {[%clk 0:02:47]}  Bb7 {[%clk 0:02:59]} 11. Nf1 {[%clk 0:02:40]}  d4 {[%clk 0:02:53]} 12. cxd4 {[%clk 0:02:26]}  cxd4 {[%clk 0:02:52]} 13. Bd2 {[%clk 0:02:20]}  a5 {[%clk 0:02:51]} 14. a3 {[%clk 0:02:18]}  Qb6 {[%clk 0:02:49]} 15. axb4 {[%clk 0:02:16]}  axb4 {[%clk 0:02:50]} 16. Rxa8 {[%clk 0:02:16]}  Bxa8 {[%clk 0:02:51]} 17. Qa4 {[%clk 0:02:16]}  Nbc6 {[%clk 0:02:49]} 18. g4 {[%clk 0:02:04]}  Bb7 {[%clk 0:02:46]} 19. Ng3 {[%clk 0:02:00]}  b3 {[%clk 0:02:41]} 20. Ne4 {[%clk 0:01:50]}  Ra8 {[%clk 0:02:34]} 21. Qc4 {[%clk 0:01:44]}  Ba6 {[%clk 0:02:31]} 22. Qc5 {[%clk 0:01:40]}  Qxc5 {[%clk 0:02:20]} 23. Nxc5 {[%clk 0:01:41]}  Nd5 {[%clk 0:02:12]} 24. Nxb3 {[%clk 0:01:39]}  Bxd3 {[%clk 0:02:08]} 25. Nfxd4 {[%clk 0:01:38]}  Nxe5 {[%clk 0:02:02]} 26. Nc5 {[%clk 0:01:32]}  Nxg4 {[%clk 0:01:57]} 27. Bc3 {[%clk 0:01:27]}  Nxc3 {[%clk 0:01:49]} 28. bxc3 {[%clk 0:01:27]}  Rc8 {[%clk 0:01:39]} 29. Nxd3 {[%clk 0:01:27]}  Rxc3 {[%clk 0:01:39]} 30. Nxe6 {[%clk 0:01:20]}  fxe6 {[%clk 0:01:35]} 31. Nf4 {[%clk 0:01:18]}  Bd4 {[%clk 0:01:29]} 32. Rxe6 {[%clk 0:00:54]}  Bxf2+ {[%clk 0:01:22]} 33. Kf1 {[%clk 0:00:52]}  Rc1+ {[%clk 0:01:17]} 34. Ke2 {[%clk 0:00:52]}  Bh4 {[%clk 0:00:57]} 35. Bd5 {[%clk 0:00:49]}  Kg7 {[%clk 0:00:51]} 36. h3 {[%clk 0:00:42]}  Nf6 {[%clk 0:00:44]} 37. Re7+ {[%clk 0:00:30]}  Kh6 {[%clk 0:00:45]} 38. Rb7 {[%clk 0:00:22]}  Re1+ {[%clk 0:00:36]} 39. Kf3 {[%clk 0:00:17]}  Rf1+ {[%clk 0:00:36]} 40. Ke3 {[%clk 0:00:10]}  Bg5 {[%clk 0:00:33]} 0-1


[Site "https://www.chess.com"]

[Event "Titled Tuesday Blitz June 6 Late 2023"]
[White "Luong Phuong Hanh"]
[Black "Levine, David"]
[WhiteFideId "12401013"]
[BlackFideId "2011611"]
[WhiteElo "2081"]
[BlackElo "2112"]
[Result "1-0"]
[Round "4"]
[TimeControl "180+2"]
[Date "2023.06.07"]
[WhiteClock "0:02:27"]
[BlackClock "0:01:28"]
[Board "138"]

1. d4 {[%clk 0:02:53]}  d5 {[%clk 0:02:59]} 2. c4 {[%clk 0:02:53]}  dxc4 {[%clk 0:02:59]} 3. e3 {[%clk 0:02:53]}  Nf6 {[%clk 0:02:58]} 4. Bxc4 {[%clk 0:02:54]}  e6 {[%clk 0:02:59]} 5. Nf3 {[%clk 0:02:54]}  c5 {[%clk 0:02:59]} 6. O-O {[%clk 0:02:55]}  Nc6 {[%clk 0:02:59]} 7. dxc5 {[%clk 0:02:56]}  Qxd1 {[%clk 0:02:56]} 8. Rxd1 {[%clk 0:02:57]}  Bxc5 {[%clk 0:02:57]} 9. Nc3 {[%clk 0:02:58]}  a6 {[%clk 0:02:53]} 10. Be2 {[%clk 0:02:58]}  Bd7 {[%clk 0:02:42]} 11. a3 {[%clk 0:02:57]}  Ke7 {[%clk 0:02:37]} 12. b4 {[%clk 0:02:57]}  Bd6 {[%clk 0:02:35]} 13. Bb2 {[%clk 0:02:56]}  Rhd8 {[%clk 0:02:33]} 14. Na4 {[%clk 0:02:55]}  Nd5 {[%clk 0:02:07]} 15. Bxg7 {[%clk 0:02:50]}  f6 {[%clk 0:02:06]} 16. Bc4 {[%clk 0:02:44]}  b5 {[%clk 0:02:03]} 17. Bxd5 {[%clk 0:02:43]}  bxa4 {[%clk 0:02:03]} 18. Ba2 {[%clk 0:02:40]}  Rg8 {[%clk 0:01:59]} 19. Bxf6+ {[%clk 0:02:38]}  Kxf6 {[%clk 0:01:55]} 20. Rxd6 {[%clk 0:02:39]}  Rad8 {[%clk 0:01:36]} 21. Rad1 {[%clk 0:02:38]}  Ke7 {[%clk 0:01:36]} 22. h4 {[%clk 0:02:37]}  h6 {[%clk 0:01:34]} 23. e4 {[%clk 0:02:29]}  e5 {[%clk 0:01:28]} 24. Bxg8 {[%clk 0:02:27]} 1-0


[Site "https://www.chess.com"]

[Event "Titled Tuesday Blitz June 6 Late 2023"]
[White "Kaplan, Avi Harrison"]
[Black "Tsukerman, Julia"]
[WhiteFideId "30934559"]
[BlackFideId "2621649"]
[WhiteElo "1983"]
[BlackElo "1667"]
[Result "1-0"]
[Round "4"]
[TimeControl "180+2"]
[Date "2023.06.07"]
[WhiteClock "0:01:34"]
[BlackClock "0:00:14"]
[Board "139"]

1. d4 {[%clk 0:02:52]}  d5 {[%clk 0:02:58]} 2. Nc3 {[%clk 0:02:53]}  e6 {[%clk 0:02:54]} 3. Bf4 {[%clk 0:02:52]}  Nf6 {[%clk 0:02:52]} 4. Nb5 {[%clk 0:02:52]}  Na6 {[%clk 0:02:52]} 5. e3 {[%clk 0:02:50]}  Be7 {[%clk 0:02:46]} 6. Bd3 {[%clk 0:02:47]}  Bd7 {[%clk 0:02:39]} 7. g4 {[%clk 0:02:43]}  h6 {[%clk 0:02:35]} 8. h4 {[%clk 0:02:42]}  c6 {[%clk 0:02:32]} 9. Nd6+ {[%clk 0:02:42]}  Bxd6 {[%clk 0:02:23]} 10. Bxd6 {[%clk 0:02:42]}  e5 {[%clk 0:01:59]} 11. dxe5 {[%clk 0:02:29]}  Nxg4 {[%clk 0:01:49]} 12. Qf3 {[%clk 0:02:24]}  Be6 {[%clk 0:01:30]} 13. Bf5 {[%clk 0:02:02]}  Qd7 {[%clk 0:01:28]} 14. Qxg4 {[%clk 0:01:55]}  Bxf5 {[%clk 0:01:21]} 15. Qxg7 {[%clk 0:01:56]}  O-O-O {[%clk 0:01:18]} 16. Qg3 {[%clk 0:01:51]}  Bxc2 {[%clk 0:01:12]} 17. Ne2 {[%clk 0:01:49]}  Rdg8 {[%clk 0:00:52]} 18. Qf4 {[%clk 0:01:49]}  Be4 {[%clk 0:00:37]} 19. f3 {[%clk 0:01:43]}  Bf5 {[%clk 0:00:32]} 20. Nd4 {[%clk 0:01:43]}  Be6 {[%clk 0:00:29]} 21. Kf2 {[%clk 0:01:43]}  Rg6 {[%clk 0:00:20]} 22. h5 {[%clk 0:01:42]}  Rg5 {[%clk 0:00:19]} 23. Rag1 {[%clk 0:01:43]}  Rhg8 {[%clk 0:00:19]} 24. Rxg5 {[%clk 0:01:43]}  Rxg5 {[%clk 0:00:20]} 25. Qxg5 {[%clk 0:01:37]}  hxg5 {[%clk 0:00:19]} 26. h6 {[%clk 0:01:37]}  Bf5 {[%clk 0:00:16]} 27. Nxf5 {[%clk 0:01:35]}  Qxf5 {[%clk 0:00:17]} 28. h7 {[%clk 0:01:36]}  Qc2+ {[%clk 0:00:17]} 29. Kg3 {[%clk 0:01:36]}  Kd7 {[%clk 0:00:14]} 30. h8=Q {[%clk 0:01:34]} 1-0


[Site "https://www.chess.com"]

[Event "Titled Tuesday Blitz June 6 Late 2023"]
[White "Semenova, Alina"]
[Black "Balla, Tamas-Kristof"]
[WhiteFideId "24113875"]
[BlackFideId "1208497"]
[WhiteElo "1833"]
[BlackElo "2334"]
[Result "0-1"]
[Round "4"]
[TimeControl "180+2"]
[Date "2023.06.07"]
[WhiteClock "0:00:18"]
[BlackClock "0:00:31"]
[Board "141"]

1. e4 {[%clk 0:03:00]}  c5 {[%clk 0:02:59]} 2. Nf3 {[%clk 0:02:59]}  Nc6 {[%clk 0:02:59]} 3. d4 {[%clk 0:02:59]}  cxd4 {[%clk 0:03:00]} 4. Nxd4 {[%clk 0:03:00]}  e5 {[%clk 0:03:00]} 5. Nb5 {[%clk 0:02:57]}  d6 {[%clk 0:03:00]} 6. N1c3 {[%clk 0:02:58]}  a6 {[%clk 0:03:00]} 7. Na3 {[%clk 0:02:58]}  b5 {[%clk 0:03:01]} 8. Nd5 {[%clk 0:02:58]}  Nge7 {[%clk 0:03:01]} 9. Bg5 {[%clk 0:02:57]}  h6 {[%clk 0:03:00]} 10. Bxe7 {[%clk 0:02:53]}  Nxe7 {[%clk 0:03:00]} 11. c3 {[%clk 0:02:54]}  Nxd5 {[%clk 0:03:00]} 12. exd5 {[%clk 0:02:54]}  Be7 {[%clk 0:02:58]} 13. g3 {[%clk 0:02:46]}  O-O {[%clk 0:02:56]} 14. Bg2 {[%clk 0:02:47]}  f5 {[%clk 0:02:55]} 15. O-O {[%clk 0:02:48]}  f4 {[%clk 0:02:23]} 16. Nc2 {[%clk 0:02:43]}  Bd7 {[%clk 0:02:11]} 17. Qh5 {[%clk 0:02:17]}  Qc8 {[%clk 0:02:00]} 18. Nb4 {[%clk 0:02:08]}  Bg4 {[%clk 0:01:06]} 19. Qg6 {[%clk 0:02:07]}  f3 {[%clk 0:01:01]} 20. Bh1 {[%clk 0:02:02]}  Bf5 {[%clk 0:00:52]} 21. Nc6 {[%clk 0:00:58]}  Qd7 {[%clk 0:00:49]} 22. Qh5 {[%clk 0:00:47]}  Bg5 {[%clk 0:00:42]} 23. Bxf3 {[%clk 0:00:29]}  g6 {[%clk 0:00:38]} 24. h4 {[%clk 0:00:19]}  gxh5 {[%clk 0:00:38]} 25. hxg5 {[%clk 0:00:19]}  Bh3 {[%clk 0:00:32]} 26. Rfe1 {[%clk 0:00:18]}  Rxf3 {[%clk 0:00:31]} 0-1


[Site "https://www.chess.com"]

[Event "Titled Tuesday Blitz June 6 Late 2023"]
[White "dorpato"]
[Black "Garcia Cuenca, Victor"]
[BlackFideId "2250829"]
[WhiteElo "2073"]
[BlackElo "2329"]
[Result "0-1"]
[Round "4"]
[TimeControl "180+2"]
[Date "2023.06.07"]
[WhiteClock "0:00:06"]
[BlackClock "0:00:54"]
[Board "142"]

1. e4 {[%clk 0:02:58]}  c6 {[%clk 0:02:56]} 2. d4 {[%clk 0:02:52]}  d6 {[%clk 0:02:55]} 3. e5 {[%clk 0:02:53]}  dxe5 {[%clk 0:02:54]} 4. dxe5 {[%clk 0:02:53]}  Qxd1+ {[%clk 0:02:54]} 5. Kxd1 {[%clk 0:02:54]}  Bf5 {[%clk 0:02:54]} 6. Be3 {[%clk 0:02:47]}  Nd7 {[%clk 0:02:52]} 7. Nc3 {[%clk 0:02:36]}  O-O-O {[%clk 0:02:52]} 8. Kc1 {[%clk 0:02:35]}  Nxe5 {[%clk 0:02:50]} 9. Nge2 {[%clk 0:02:24]}  b6 {[%clk 0:02:32]} 10. g3 {[%clk 0:02:12]}  Ng4 {[%clk 0:02:27]} 11. Bg2 {[%clk 0:02:04]}  Kc7 {[%clk 0:02:14]} 12. Nd1 {[%clk 0:01:55]}  N8f6 {[%clk 0:02:05]} 13. h3 {[%clk 0:01:42]}  Nxe3 {[%clk 0:02:04]} 14. Nxe3 {[%clk 0:01:40]}  Be4 {[%clk 0:02:04]} 15. f3 {[%clk 0:01:36]}  Nd5 {[%clk 0:01:54]} 16. Ng4 {[%clk 0:01:23]}  Bf5 {[%clk 0:01:50]} 17. Ne5 {[%clk 0:01:03]}  Bg6 {[%clk 0:01:47]} 18. h4 {[%clk 0:00:54]}  f6 {[%clk 0:01:47]} 19. Nd3 {[%clk 0:00:51]}  Bxd3 {[%clk 0:01:39]} 20. cxd3 {[%clk 0:00:52]}  Ne3 {[%clk 0:01:37]} 21. Nf4 {[%clk 0:00:45]}  e5 {[%clk 0:01:35]} 22. Ne6+ {[%clk 0:00:39]}  Kd7 {[%clk 0:01:35]} 23. Nxd8 {[%clk 0:00:39]}  Nxg2 {[%clk 0:01:32]} 24. Nb7 {[%clk 0:00:13]}  Kc7 {[%clk 0:01:29]} 25. Kd2 {[%clk 0:00:13]}  Kxb7 {[%clk 0:01:21]} 26. Rhg1 {[%clk 0:00:13]}  Bb4+ {[%clk 0:01:19]} 27. Ke2 {[%clk 0:00:13]}  Ne3 {[%clk 0:01:11]} 28. Kxe3 {[%clk 0:00:13]}  Bc5+ {[%clk 0:01:11]} 29. Ke2 {[%clk 0:00:12]}  Bxg1 {[%clk 0:01:12]} 30. Rxg1 {[%clk 0:00:12]}  Rd8 {[%clk 0:01:11]} 31. f4 {[%clk 0:00:11]}  Re8 {[%clk 0:01:08]} 32. f5 {[%clk 0:00:11]}  c5 {[%clk 0:01:07]} 33. Ke3 {[%clk 0:00:10]}  Rd8 {[%clk 0:01:06]} 34. g4 {[%clk 0:00:10]}  Rd4 {[%clk 0:01:01]} 35. h5 {[%clk 0:00:09]}  h6 {[%clk 0:01:01]} 36. b3 {[%clk 0:00:05]}  Kc6 {[%clk 0:01:00]} 37. g5 {[%clk 0:00:02]}  hxg5 {[%clk 0:00:59]} 38. Rh1 {[%clk 0:00:02]}  Rh4 {[%clk 0:00:53]} 39. Rxh4 {[%clk 0:00:01]}  gxh4 {[%clk 0:00:52]} 40. Kf3 {[%clk 0:00:02]}  Kd5 {[%clk 0:00:51]} 41. Kg4 {[%clk 0:00:02]}  Kd4 {[%clk 0:00:52]} 42. Kxh4 {[%clk 0:00:03]}  Kxd3 {[%clk 0:00:53]} 43. h6 {[%clk 0:00:03]}  gxh6 {[%clk 0:00:53]} 44. Kh5 {[%clk 0:00:04]}  e4 {[%clk 0:00:53]} 45. Kg6 {[%clk 0:00:03]}  e3 {[%clk 0:00:54]} 46. Kxf6 {[%clk 0:00:04]}  e2 {[%clk 0:00:55]} 47. Kg7 {[%clk 0:00:05]}  e1=Q {[%clk 0:00:56]} 48. f6 {[%clk 0:00:05]}  Qf2 {[%clk 0:00:55]} 49. f7 {[%clk 0:00:06]}  h5 {[%clk 0:00:54]} 0-1


[Site "https://www.chess.com"]

[Event "Titled Tuesday Blitz June 6 Late 2023"]
[White "Mayeregger, Arnold"]
[Black "Pavlidou, Ekaterini"]
[WhiteFideId "3705226"]
[BlackFideId "4213262"]
[WhiteElo "2038"]
[BlackElo "2126"]
[Result "1-0"]
[Round "4"]
[TimeControl "180+2"]
[Date "2023.06.07"]
[WhiteClock "0:01:01"]
[BlackClock "0:00:18"]
[Board "145"]

1. e4 {[%clk 0:02:56]}  c5 {[%clk 0:03:00]} 2. Nf3 {[%clk 0:02:56]}  e6 {[%clk 0:02:58]} 3. d4 {[%clk 0:02:55]}  cxd4 {[%clk 0:02:58]} 4. Nxd4 {[%clk 0:02:56]}  Nf6 {[%clk 0:02:59]} 5. Nc3 {[%clk 0:02:56]}  Nc6 {[%clk 0:02:59]} 6. Ndb5 {[%clk 0:02:56]}  Bb4 {[%clk 0:02:58]} 7. a3 {[%clk 0:02:56]}  Bxc3+ {[%clk 0:02:57]} 8. Nxc3 {[%clk 0:02:57]}  d5 {[%clk 0:02:58]} 9. exd5 {[%clk 0:02:58]}  exd5 {[%clk 0:02:58]} 10. Bd3 {[%clk 0:02:59]}  O-O {[%clk 0:02:56]} 11. O-O {[%clk 0:02:59]}  d4 {[%clk 0:02:56]} 12. Ne2 {[%clk 0:02:58]}  Bg4 {[%clk 0:02:57]} 13. f3 {[%clk 0:02:58]}  Bh5 {[%clk 0:02:57]} 14. Nf4 {[%clk 0:02:58]}  Bg6 {[%clk 0:02:55]} 15. Nxg6 {[%clk 0:02:58]}  hxg6 {[%clk 0:02:47]} 16. Kh1 {[%clk 0:02:59]}  Qd6 {[%clk 0:02:44]} 17. Bg5 {[%clk 0:02:56]}  Nh5 {[%clk 0:02:38]} 18. Qd2 {[%clk 0:02:51]}  Rfe8 {[%clk 0:02:37]} 19. Bc4 {[%clk 0:02:47]}  Ne5 {[%clk 0:02:35]} 20. Bb3 {[%clk 0:02:47]}  Rad8 {[%clk 0:02:28]} 21. Rad1 {[%clk 0:02:46]}  Nf6 {[%clk 0:02:22]} 22. Rfe1 {[%clk 0:02:45]}  Nc6 {[%clk 0:02:15]} 23. Bf4 {[%clk 0:02:40]}  Qc5 {[%clk 0:02:10]} 24. Qd3 {[%clk 0:02:37]}  g5 {[%clk 0:02:04]} 25. Bg3 {[%clk 0:02:25]}  Na5 {[%clk 0:01:53]} 26. Ba2 {[%clk 0:02:23]}  Nc6 {[%clk 0:01:09]} 27. b4 {[%clk 0:02:19]}  Qf8 {[%clk 0:01:06]} 28. Rxe8 {[%clk 0:02:13]}  Rxe8 {[%clk 0:01:04]} 29. b5 {[%clk 0:02:13]}  Ne7 {[%clk 0:01:04]} 30. Bd6 {[%clk 0:02:09]}  Rd8 {[%clk 0:01:01]} 31. Bb4 {[%clk 0:02:09]}  Rd7 {[%clk 0:00:49]} 32. Re1 {[%clk 0:02:00]}  Qd8 {[%clk 0:00:49]} 33. Qd2 {[%clk 0:01:55]}  Ned5 {[%clk 0:00:44]} 34. Bc5 {[%clk 0:01:37]}  Ne3 {[%clk 0:00:42]} 35. Bb3 {[%clk 0:01:20]}  g4 {[%clk 0:00:38]} 36. fxg4 {[%clk 0:01:15]}  Nfxg4 {[%clk 0:00:37]} 37. h3 {[%clk 0:01:13]}  b6 {[%clk 0:00:35]} 38. Bb4 {[%clk 0:01:10]}  Qh4 {[%clk 0:00:33]} 39. Kg1 {[%clk 0:01:08]}  Rd8 {[%clk 0:00:18]} 40. hxg4 {[%clk 0:01:02]}  Nxg4 {[%clk 0:00:18]} 41. Qf4 {[%clk 0:01:01]}  Qxe1+ {[%clk 0:00:18]} 42. Bxe1 {[%clk 0:01:01]} 1-0


[Site "https://www.chess.com"]

[Event "Titled Tuesday Blitz June 6 Late 2023"]
[White "Spichkin, Alexander"]
[Black "Goncalves, Davi Sulzbacher"]
[WhiteFideId "4144074"]
[BlackFideId "2154510"]
[WhiteElo "1986"]
[BlackElo "2182"]
[Result "1-0"]
[Round "4"]
[TimeControl "180+2"]
[Date "2023.06.07"]
[WhiteClock "0:01:24"]
[BlackClock "0:00:01"]
[Board "146"]

1. f4 {[%clk 0:02:59]}  e5 {[%clk 0:02:57]} 2. e4 {[%clk 0:02:58]}  d5 {[%clk 0:02:56]} 3. exd5 {[%clk 0:02:58]}  e4 {[%clk 0:02:57]} 4. d3 {[%clk 0:02:57]}  Nf6 {[%clk 0:02:57]} 5. Qe2 {[%clk 0:02:57]}  Qxd5 {[%clk 0:02:47]} 6. Nc3 {[%clk 0:02:57]}  Bb4 {[%clk 0:02:47]} 7. Bd2 {[%clk 0:02:52]}  Bxc3 {[%clk 0:02:38]} 8. Bxc3 {[%clk 0:02:53]}  Nbd7 {[%clk 0:02:36]} 9. O-O-O {[%clk 0:02:52]}  Qxa2 {[%clk 0:02:31]} 10. dxe4 {[%clk 0:02:49]}  O-O {[%clk 0:02:27]} 11. e5 {[%clk 0:02:49]}  Nxe5 {[%clk 0:02:01]} 12. fxe5 {[%clk 0:02:45]}  Bg4 {[%clk 0:02:01]} 13. Nf3 {[%clk 0:02:44]}  Rad8 {[%clk 0:01:24]} 14. b3 {[%clk 0:02:27]}  Rxd1+ {[%clk 0:01:10]} 15. Qxd1 {[%clk 0:02:19]}  Ne4 {[%clk 0:01:10]} 16. Qd4 {[%clk 0:02:02]}  Bf5 {[%clk 0:01:03]} 17. Bd3 {[%clk 0:01:57]}  c5 {[%clk 0:00:57]} 18. Qa4 {[%clk 0:01:49]}  Nxc3 {[%clk 0:00:53]} 19. Qxa2 {[%clk 0:01:49]}  Nxa2+ {[%clk 0:00:54]} 20. Kb2 {[%clk 0:01:49]}  Bxd3 {[%clk 0:00:53]} 21. cxd3 {[%clk 0:01:47]}  Nb4 {[%clk 0:00:53]} 22. Kc3 {[%clk 0:01:47]}  Rd8 {[%clk 0:00:50]} 23. d4 {[%clk 0:01:46]}  Nd5+ {[%clk 0:00:50]} 24. Kc4 {[%clk 0:01:45]}  Ne3+ {[%clk 0:00:48]} 25. Kxc5 {[%clk 0:01:45]}  Rc8+ {[%clk 0:00:48]} 26. Kb4 {[%clk 0:01:44]}  Nc2+ {[%clk 0:00:48]} 27. Ka4 {[%clk 0:01:41]}  a6 {[%clk 0:00:38]} 28. Rc1 {[%clk 0:01:37]}  Rc6 {[%clk 0:00:06]} 29. d5 {[%clk 0:01:30]}  Rc5 {[%clk 0:00:02]} 30. d6 {[%clk 0:01:28]}  Kf8 {[%clk 0:00:01]} 31. Nd4 {[%clk 0:01:25]}  Ke8 {[%clk 0:00:01]} 32. Rxc2 {[%clk 0:01:24]} 1-0


[Site "https://www.chess.com"]

[Event "Titled Tuesday Blitz June 6 Late 2023"]
[White "Gonzalez Vega, Alejandro"]
[Black "Rangel, Daniel"]
[WhiteFideId "3510042"]
[BlackFideId "2124475"]
[WhiteElo "2294"]
[BlackElo "2231"]
[Result "1-0"]
[Round "4"]
[TimeControl "180+2"]
[Date "2023.06.07"]
[WhiteClock "0:00:28"]
[BlackClock "0:00:04"]
[Board "149"]

1. e4 {[%clk 0:03:00]}  c5 {[%clk 0:02:58]} 2. Nf3 {[%clk 0:02:59]}  d6 {[%clk 0:02:59]} 3. d4 {[%clk 0:02:56]}  cxd4 {[%clk 0:03:00]} 4. c3 {[%clk 0:02:56]}  d3 {[%clk 0:02:58]} 5. Bxd3 {[%clk 0:02:55]}  Nf6 {[%clk 0:02:58]} 6. h3 {[%clk 0:02:56]}  g6 {[%clk 0:02:58]} 7. O-O {[%clk 0:02:57]}  Bg7 {[%clk 0:02:59]} 8. Qe2 {[%clk 0:02:57]}  O-O {[%clk 0:02:59]} 9. Rd1 {[%clk 0:02:58]}  Qc7 {[%clk 0:02:57]} 10. Bg5 {[%clk 0:02:57]}  Nbd7 {[%clk 0:02:35]} 11. Bc2 {[%clk 0:02:54]}  a6 {[%clk 0:02:31]} 12. a4 {[%clk 0:02:53]}  b6 {[%clk 0:02:27]} 13. Nbd2 {[%clk 0:02:50]}  Bb7 {[%clk 0:02:10]} 14. Re1 {[%clk 0:02:04]}  e5 {[%clk 0:02:00]} 15. Rad1 {[%clk 0:01:51]}  Nc5 {[%clk 0:01:59]} 16. Qe3 {[%clk 0:01:33]}  Rfe8 {[%clk 0:01:52]} 17. Bh6 {[%clk 0:01:30]}  Bh8 {[%clk 0:01:47]} 18. Ng5 {[%clk 0:01:28]}  Nh5 {[%clk 0:01:39]} 19. g3 {[%clk 0:01:16]}  f6 {[%clk 0:01:21]} 20. Ngf3 {[%clk 0:01:15]}  Qf7 {[%clk 0:01:13]} 21. h4 {[%clk 0:01:11]}  Rad8 {[%clk 0:01:05]} 22. b4 {[%clk 0:01:06]}  Ne6 {[%clk 0:01:05]} 23. Bb3 {[%clk 0:01:01]}  b5 {[%clk 0:01:01]} 24. axb5 {[%clk 0:01:00]}  axb5 {[%clk 0:01:01]} 25. Ra1 {[%clk 0:00:58]}  f5 {[%clk 0:00:59]} 26. exf5 {[%clk 0:00:55]}  gxf5 {[%clk 0:01:00]} 27. Ng5 {[%clk 0:00:53]}  Qg6 {[%clk 0:00:35]} 28. Nxe6 {[%clk 0:00:51]}  Rxe6 {[%clk 0:00:36]} 29. Qg5 {[%clk 0:00:49]}  d5 {[%clk 0:00:32]} 30. Qxd8+ {[%clk 0:00:48]}  Re8 {[%clk 0:00:28]} 31. Bxd5+ {[%clk 0:00:46]}  Bxd5 {[%clk 0:00:20]} 32. Qxd5+ {[%clk 0:00:46]}  Qf7 {[%clk 0:00:20]} 33. Qxf7+ {[%clk 0:00:45]}  Kxf7 {[%clk 0:00:21]} 34. Ra7+ {[%clk 0:00:42]}  Kg6 {[%clk 0:00:21]} 35. Be3 {[%clk 0:00:41]}  Rc8 {[%clk 0:00:15]} 36. Bc5 {[%clk 0:00:40]}  f4 {[%clk 0:00:12]} 37. g4 {[%clk 0:00:38]}  Nf6 {[%clk 0:00:12]} 38. f3 {[%clk 0:00:38]}  h5 {[%clk 0:00:11]} 39. g5 {[%clk 0:00:37]}  Ne8 {[%clk 0:00:10]} 40. Ne4 {[%clk 0:00:35]}  Ng7 {[%clk 0:00:10]} 41. Rd1 {[%clk 0:00:34]}  Nf5 {[%clk 0:00:09]} 42. Rdd7 {[%clk 0:00:32]}  Nxh4 {[%clk 0:00:09]} 43. Rd6+ {[%clk 0:00:31]}  Kf5 {[%clk 0:00:05]} 44. Rf7+ {[%clk 0:00:28]}  Bf6 {[%clk 0:00:04]} 45. Rfxf6# {[%clk 0:00:28]} 1-0


[Site "https://www.chess.com"]